fUSD/lending_fUSD_20260510
["ID","MTS","AMOUNT","RATE_DAILY","PERIOD"]
[421964749,1778376651000,-500.0,0.00041095,2]
[421964744,1778376651000,-500.0,0.00041095,2]
[421964751,1778376651000,-500.0,0.00041095,2]
[421964750,1778376651000,-500.0,0.00041095,2]
[421964761,1778376651000,-500.0,0.00041095,2]
[421964762,1778376651000,-500.0,0.00041095,2]
[421964753,1778376651000,-500.0,0.00041095,2]
[421964742,1778376651000,-500.0,0.00041095,2]
[421964778,1778376651000,-500.0,0.00041095,2]
[421964792,1778376651000,-300.0,0.00041095,2]
[421964789,1778376651000,-300.0,0.00041095,2]
[421964821,1778376651000,-551.23367372,0.00041095,2]
[421964823,1778376651000,-5648.0,0.00041096,120]
[421964822,1778376651000,-1561.0,0.00041096,120]
[421964830,1778376651000,-151.0,0.00041096,120]
[421964840,1778376651000,-1474.328509,0.00041096,120]
[421964835,1778376651000,-151.0,0.00041096,120]
[421964833,1778376651000,-1252.270047,0.00041096,30]
[421964837,1778376651000,-151.0,0.00041096,120]
[421964836,1778376651000,-151.0,0.00041096,120]
[421964829,1778376651000,-151.0,0.00041096,120]
[421964834,1778376651000,-1252.270047,0.00041096,30]
[421964838,1778376651000,-151.0,0.00041096,120]
[421964841,1778376651000,-1474.328509,0.00041096,120]
[421964839,1778376651000,-1474.328509,0.00041096,120]
[421964831,1778376651000,-1252.270047,0.00041096,30]
[421964832,1778376651000,-1252.270047,0.00041096,30]
[421964842,1778376651000,-1474.328509,0.00041096,120]
[421964845,1778376651000,-892.95,0.00041096,120]
[421964853,1778376651000,-151.0,0.00041096,120]
[421964843,1778376651000,-892.95,0.00041096,120]
[421964846,1778376651000,-892.95,0.00041096,120]
[421964844,1778376651000,-892.95,0.00041096,120]
[421964847,1778376651000,-151.0,0.00041096,120]
[421964848,1778376651000,-151.0,0.00041096,120]
[421964849,1778376651000,-5873.836731,0.00041096,14]
[421964852,1778376651000,-5873.836731,0.00041096,14]
[421964850,1778376651000,-5873.836731,0.00041096,14]
[421964851,1778376651000,-151.0,0.00041096,120]
[421964786,1778376651000,-300.0,0.00041095,2]
[421964826,1778376651000,-180.127043,0.00041096,120]
[421964820,1778376651000,-500.0,0.00041095,2]
[421964810,1778376651000,-500.0,0.00041095,2]
[421964828,1778376651000,-151.0,0.00041096,120]
[421964824,1778376651000,-151.0,0.00041096,120]
[421964796,1778376651000,-156.31194856,0.00041095,2]
[421964791,1778376651000,-300.0,0.00041095,2]
[421964793,1778376651000,-300.0,0.00041095,2]
[421964800,1778376651000,-500.0,0.00041095,2]
[421964801,1778376651000,-500.0,0.00041095,2]
[421964795,1778376651000,-300.0,0.00041095,2]
[421964798,1778376651000,-500.0,0.00041095,2]
[421964799,1778376651000,-500.0,0.00041095,2]
[421964797,1778376651000,-500.0,0.00041095,2]
[421964794,1778376651000,-300.0,0.00041095,2]
[421964813,1778376651000,-500.0,0.00041095,2]
[421964803,1778376651000,-500.0,0.00041095,2]
[421964814,1778376651000,-500.0,0.00041095,2]
[421964804,1778376651000,-500.0,0.00041095,2]
[421964790,1778376651000,-300.0,0.00041095,2]
[421964805,1778376651000,-500.0,0.00041095,2]
[421964819,1778376651000,-500.0,0.00041095,2]
[421964825,1778376651000,-248.480614,0.00041096,120]
[421964827,1778376651000,-151.0,0.00041096,120]
[421964818,1778376651000,-500.0,0.00041095,2]
[421964815,1778376651000,-500.0,0.00041095,2]
[421964817,1778376651000,-500.0,0.00041095,2]
[421964816,1778376651000,-500.0,0.00041095,2]
[421964807,1778376651000,-500.0,0.00041095,2]
[421964811,1778376651000,-500.0,0.00041095,2]
[421964802,1778376651000,-500.0,0.00041095,2]
[421964806,1778376651000,-500.0,0.00041095,2]
[421964808,1778376651000,-500.0,0.00041095,2]
[421964809,1778376651000,-500.0,0.00041095,2]
[421964812,1778376651000,-500.0,0.00041095,2]
[421964892,1778376652000,-1205.02624961,0.000411,120]
[421964887,1778376652000,-1205.02624961,0.000411,120]
[421964889,1778376652000,-1205.02624961,0.000411,120]
[421964888,1778376652000,-1205.02624961,0.000411,120]
[421964891,1778376652000,-1205.02624961,0.000411,120]
[421964883,1778376652000,-1205.02624961,0.000411,120]
[421964890,1778376652000,-1205.02624961,0.000411,120]
[421964894,1778376652000,-1205.02624961,0.000411,120]
[421964886,1778376652000,-1205.02624961,0.000411,120]
[421964896,1778376652000,-1000.0,0.00041174,120]
[421964900,1778376652000,-154.45974035,0.00041205,3]
[421964893,1778376652000,-1205.02624961,0.000411,120]
[421964898,1778376652000,-2400.0,0.00041187,30]
[421964904,1778376652000,-5441.991,0.00041252,2]
[421964906,1778376652000,-150.96,0.00041253,120]
[421964897,1778376652000,-2400.0,0.00041187,60]
[421964905,1778376652000,-2585.7478172,0.00041252,2]
[421964902,1778376652000,-157.49,0.0004125,120]
[421964899,1778376652000,-1101.25,0.000412,90]
[421964907,1778376652000,-2585.7478172,0.00041285,2]
[421964901,1778376652000,-370.60193955,0.00041223,13]
[421964910,1778376652000,-150.96,0.00041353,120]
[421964909,1778376652000,-155.0,0.000413,120]
[421964912,1778376652000,-353.0,0.00041388,14]
[421964911,1778376652000,-1561.0,0.0004137,120]
[421964913,1778376652000,-1000.0,0.0004139,120]
[421964895,1778376652000,-150.96,0.00041153,120]
[421964908,1778376652000,-350.0,0.00041297,2]
[421964885,1778376652000,-1205.02624961,0.000411,120]
[421964864,1778376652000,-170.58908337,0.00041096,120]
[421964878,1778376652000,-1205.02624961,0.000411,120]
[421964854,1778376652000,-722.199432,0.00041096,120]
[421964855,1778376652000,-5873.836731,0.00041096,14]
[421964856,1778376652000,-722.199432,0.00041096,120]
[421964860,1778376652000,-151.0,0.00041096,7]
[421964859,1778376652000,-151.0,0.00041096,120]
[421964858,1778376652000,-722.199432,0.00041096,120]
[421964868,1778376652000,-150.0,0.00041096,120]
[421964857,1778376652000,-722.199432,0.00041096,120]
[421964861,1778376652000,-151.0,0.00041096,7]
[421964867,1778376652000,-201.06,0.00041096,120]
[421964863,1778376652000,-151.0,0.00041096,120]
[421964862,1778376652000,-214.216042,0.00041096,7]
[421964865,1778376652000,-160.15,0.00041096,60]
[421964884,1778376652000,-1205.02624961,0.000411,120]
[421964866,1778376652000,-201.06,0.00041096,120]
[421964869,1778376652000,-150.0,0.00041096,120]
[421964872,1778376652000,-150.0,0.00041096,120]
[421964870,1778376652000,-150.0,0.00041096,120]
[421964871,1778376652000,-150.0,0.00041096,120]
[421964873,1778376652000,-155.26736171,0.00041096,120]
[421964874,1778376652000,-204.05,0.000411,7]
[421964882,1778376652000,-1205.02624961,0.000411,120]
[421964880,1778376652000,-1205.02624961,0.000411,120]
[421964881,1778376652000,-1205.02624961,0.000411,120]
[421964875,1778376652000,-194.0,0.000411,120]
[421964877,1778376652000,-1205.02624961,0.000411,120]
[421964879,1778376652000,-1205.02624961,0.000411,120]
[421964876,1778376652000,-1205.02624961,0.000411,120]
[421964916,1778376652000,-2000.0,0.0004141,120]
[421964915,1778376652000,-1000.0,0.00041409,120]
[421964903,1778376652000,-4974.2,0.0004125,120]
[421964920,1778376652000,-2000.0,0.0004141,120]
[421964950,1778376652000,-245.93142482,0.0004169,120]
[421964945,1778376652000,-1000.0,0.0004166,120]
[421964952,1778376652000,-194.0,0.000417,120]
[421964953,1778376652000,-160.0,0.000417,120]
[421964956,1778376652000,-1000.0,0.000417,120]
[421964957,1778376652000,-244.8509197,0.00041701,120]
[421964955,1778376652000,-10526.25963,0.000417,7]
[421964963,1778376652000,-151.0,0.00041701,120]
[421964960,1778376652000,-151.0,0.00041701,120]
[421964954,1778376652000,-43040.15,0.000417,7]
[421964966,1778376652000,-151.0,0.00041701,120]
[421964962,1778376652000,-151.0,0.00041701,120]
[421964965,1778376652000,-151.0,0.00041701,120]
[421964941,1778376652000,-1000.0,0.0004165,120]
[421964958,1778376652000,-151.0,0.00041701,120]
[421964961,1778376652000,-151.0,0.00041701,120]
[421964968,1778376652000,-151.0,0.00041701,120]
[421964967,1778376652000,-151.0,0.00041701,120]
[421964969,1778376652000,-151.0,0.00041701,120]
[421964973,1778376652000,-151.0,0.00041701,120]
[421964970,1778376652000,-151.0,0.00041701,120]
[421964977,1778376652000,-151.0,0.00041701,120]
[421964974,1778376652000,-151.0,0.00041701,120]
[421964972,1778376652000,-151.0,0.00041701,120]
[421964976,1778376652000,-220.9082,0.00041701,120]
[421964975,1778376652000,-151.0,0.00041701,120]
[421964971,1778376652000,-151.0,0.00041701,120]
[421964914,1778376652000,-1205.02,0.000414,120]
[421964959,1778376652000,-151.0,0.00041701,120]
[421964943,1778376652000,-150.96,0.00041653,120]
[421964964,1778376652000,-151.0,0.00041701,120]
[421964948,1778376652000,-1000.0,0.0004167,120]
[421964946,1778376652000,-441.78566965,0.00041661,2]
[421964926,1778376652000,-1000.0,0.00041497,120]
[421964925,1778376652000,-150.43,0.0004149,120]
[421964919,1778376652000,-2000.0,0.0004141,120]
[421964928,1778376652000,-5819.69893427,0.000415,120]
[421964921,1778376652000,-2000.0,0.0004141,120]
[421964917,1778376652000,-2000.0,0.0004141,120]
[421964922,1778376652000,-150.96,0.00041453,120]
[421964927,1778376652000,-167.0,0.000415,30]
[421964923,1778376652000,-214.05284582,0.00041473,120]
[421964924,1778376652000,-154.45974035,0.00041479,3]
[421964930,1778376652000,-1792.87,0.0004152,2]
[421964940,1778376652000,-1891.24032894,0.00041644,120]
[421964933,1778376652000,-1000.0,0.00041597,120]
[421964918,1778376652000,-2000.0,0.0004141,120]
[421964942,1778376652000,-150.0,0.00041652,120]
[421964931,1778376652000,-150.96,0.00041553,120]
[421964951,1778376652000,-1143.1,0.00041694,120]
[421964949,1778376652000,-1000.0,0.00041688,120]
[421964944,1778376652000,-10266.7191,0.0004166,2]
[421964947,1778376652000,-180.0,0.00041666,10]
[421964934,1778376652000,-1000.0,0.000416,120]
[421964938,1778376652000,-1000.0,0.00041644,120]
[421964939,1778376652000,-1000.0,0.00041644,120]
[421964935,1778376652000,-3426.84592814,0.000416,28]
[421964936,1778376652000,-1000.0,0.0004164,120]
[421964929,1778376652000,-254228.90550488,0.000415,120]
[421964932,1778376652000,-350.0,0.00041554,2]
[421964937,1778376652000,-1561.0,0.00041644,120]
[421965013,1778376653000,-1252.270047,0.00041701,30]
[421965030,1778376653000,-151.0,0.00041701,120]
[421965031,1778376653000,-151.0,0.00041701,120]
[421965020,1778376653000,-151.0,0.00041701,120]
[421965019,1778376653000,-1252.270041,0.00041701,30]
[421965012,1778376653000,-1252.270047,0.00041701,30]
[421965038,1778376653000,-1474.328509,0.00041701,120]
[421965014,1778376653000,-1252.270047,0.00041701,30]
[421965018,1778376653000,-1252.270047,0.00041701,30]
[421965015,1778376653000,-1252.270047,0.00041701,30]
[421965016,1778376653000,-1252.270047,0.00041701,30]
[421965021,1778376653000,-151.0,0.00041701,120]
[421965017,1778376653000,-1252.270047,0.00041701,30]
[421965011,1778376653000,-1252.270047,0.00041701,30]
[421965022,1778376653000,-151.0,0.00041701,120]
[421965027,1778376653000,-151.0,0.00041701,120]
[421965025,1778376653000,-151.0,0.00041701,120]
[421965028,1778376653000,-151.0,0.00041701,120]
[421965024,1778376653000,-151.0,0.00041701,120]
[421965029,1778376653000,-151.0,0.00041701,120]
[421965026,1778376653000,-151.0,0.00041701,120]
[421965032,1778376653000,-151.0,0.00041701,120]
[421965034,1778376653000,-151.0,0.00041701,120]
[421965042,1778376653000,-1474.328509,0.00041701,120]
[421965041,1778376653000,-1474.328509,0.00041701,120]
[421965036,1778376653000,-151.0,0.00041701,120]
[421965040,1778376653000,-1474.328509,0.00041701,120]
[421965039,1778376653000,-1474.328509,0.00041701,120]
[421965010,1778376653000,-1252.270047,0.00041701,30]
[421965023,1778376653000,-151.0,0.00041701,120]
[421965009,1778376653000,-1252.270047,0.00041701,30]
[421964980,1778376653000,-151.0,0.00041701,120]
[421965008,1778376653000,-1252.270047,0.00041701,30]
[421965033,1778376653000,-151.0,0.00041701,120]
[421964978,1778376653000,-291.179937,0.00041701,120]
[421964979,1778376653000,-151.0,0.00041701,120]
[421964981,1778376653000,-151.0,0.00041701,120]
[421964983,1778376653000,-151.0,0.00041701,120]
[421964986,1778376653000,-151.0,0.00041701,120]
[421964990,1778376653000,-706.182308,0.00041701,7]
[421964988,1778376653000,-706.182308,0.00041701,7]
[421964985,1778376653000,-151.0,0.00041701,120]
[421964982,1778376653000,-151.0,0.00041701,120]
[421964992,1778376653000,-706.182308,0.00041701,7]
[421964984,1778376653000,-151.0,0.00041701,120]
[421964987,1778376653000,-232.387648,0.00041701,120]
[421964991,1778376653000,-706.182308,0.00041701,7]
[421964989,1778376653000,-706.182308,0.00041701,7]
[421965005,1778376653000,-1252.270047,0.00041701,30]
[421964994,1778376653000,-706.182308,0.00041701,7]
[421965004,1778376653000,-1252.270047,0.00041701,30]
[421964997,1778376653000,-706.182308,0.00041701,7]
[421964993,1778376653000,-706.182308,0.00041701,7]
[421964996,1778376653000,-706.182308,0.00041701,7]
[421964998,1778376653000,-706.182308,0.00041701,7]
[421965002,1778376653000,-706.182308,0.00041701,7]
[421964995,1778376653000,-706.182308,0.00041701,7]
[421965000,1778376653000,-706.182308,0.00041701,7]
[421965001,1778376653000,-706.182308,0.00041701,7]
[421964999,1778376653000,-706.182308,0.00041701,7]
[421965003,1778376653000,-706.182304,0.00041701,7]
[421965006,1778376653000,-1252.270047,0.00041701,30]
[421965007,1778376653000,-1252.270047,0.00041701,30]
[421965037,1778376653000,-1474.328509,0.00041701,120]
[421965091,1778376653000,-300.0,0.00041748,30]
[421965035,1778376653000,-151.0,0.00041701,120]
[421965075,1778376653000,-300.0,0.00041748,30]
[421965077,1778376653000,-300.0,0.00041748,30]
[421965078,1778376653000,-300.0,0.00041748,30]
[421965074,1778376653000,-300.0,0.00041748,30]
[421965076,1778376653000,-666.0,0.00041748,30]
[421965079,1778376653000,-300.0,0.00041748,30]
[421965085,1778376653000,-151.0,0.00041748,120]
[421965097,1778376653000,-151.0,0.00041749,30]
[421965083,1778376653000,-151.0,0.00041748,120]
[421965087,1778376653000,-151.0,0.00041748,120]
[421965094,1778376653000,-151.0,0.00041749,30]
[421965090,1778376653000,-151.0,0.00041748,120]
[421965089,1778376653000,-151.0,0.00041748,120]
[421965088,1778376653000,-151.0,0.00041748,120]
[421965086,1778376653000,-151.0,0.00041748,120]
[421965093,1778376653000,-300.0,0.00041748,30]
[421965096,1778376653000,-151.0,0.00041749,30]
[421965092,1778376653000,-300.0,0.00041748,30]
[421965084,1778376653000,-151.0,0.00041748,120]
[421965043,1778376653000,-1474.328509,0.00041701,120]
[421965100,1778376653000,-151.0,0.00041749,120]
[421965104,1778376653000,-151.0,0.00041749,120]
[421965102,1778376653000,-151.0,0.00041749,120]
[421965099,1778376653000,-151.0,0.00041749,30]
[421965101,1778376653000,-290.97959,0.00041749,120]
[421965103,1778376653000,-151.0,0.00041749,120]
[421965106,1778376653000,-151.0,0.00041749,120]
[421965098,1778376653000,-151.0,0.00041749,30]
[421965105,1778376653000,-151.0,0.00041749,120]
[421965073,1778376653000,-666.0,0.00041748,30]
[421965069,1778376653000,-281.36843669,0.00041748,30]
[421965095,1778376653000,-151.0,0.00041749,30]
[421965071,1778376653000,-666.0,0.00041748,30]
[421965045,1778376653000,-1474.328509,0.00041701,120]
[421965072,1778376653000,-300.0,0.00041748,30]
[421965044,1778376653000,-1474.328509,0.00041701,120]
[421965055,1778376653000,-172.0,0.00041701,120]
[421965056,1778376653000,-395.0,0.00041701,120]
[421965054,1778376653000,-162.0,0.00041701,120]
[421965047,1778376653000,-1474.328509,0.00041701,120]
[421965052,1778376653000,-1474.32850357,0.00041701,120]
[421965050,1778376653000,-1474.328509,0.00041701,120]
[421965051,1778376653000,-1474.328509,0.00041701,120]
[421965049,1778376653000,-1474.328509,0.00041701,120]
[421965053,1778376653000,-157.0,0.00041701,120]
[421965048,1778376653000,-1474.328509,0.00041701,120]
[421965057,1778376653000,-686.0,0.00041701,120]
[421965046,1778376653000,-1474.328509,0.00041701,120]
[421965058,1778376653000,-162.0,0.00041701,120]
[421965059,1778376653000,-155.0,0.00041701,120]
[421965080,1778376653000,-666.0,0.00041748,30]
[421965070,1778376653000,-300.0,0.00041748,30]
[421965081,1778376653000,-250.0,0.00041748,30]
[421965082,1778376653000,-151.0,0.00041748,120]
[421965065,1778376653000,-300.0,0.00041748,30]
[421965064,1778376653000,-30000.0,0.00041747,2]
[421965067,1778376653000,-666.0,0.00041748,30]
[421965060,1778376653000,-161.0,0.00041701,120]
[421965068,1778376653000,-300.0,0.00041748,30]
[421965066,1778376653000,-300.0,0.00041748,30]
[421965063,1778376653000,-13888.4716186,0.00041747,2]
[421965061,1778376653000,-350.0,0.00041731,2]
[421965062,1778376653000,-1000.0,0.00041738,120]
[421965133,1778376654000,-151.0,0.00041749,120]
[421965131,1778376654000,-151.0,0.00041749,120]
[421965130,1778376654000,-151.0,0.00041749,120]
[421965129,1778376654000,-151.0,0.00041749,120]
[421965132,1778376654000,-151.0,0.00041749,120]
[421965135,1778376654000,-151.0,0.00041749,120]
[421965140,1778376654000,-151.0,0.00041749,120]
[421965139,1778376654000,-151.0,0.00041749,120]
[421965141,1778376654000,-151.0,0.00041749,120]
[421965145,1778376654000,-175.56,0.00041753,10]
[421965147,1778376654000,-50000.0,0.00041753,65]
[421965144,1778376654000,-1825.72542824,0.00041753,120]
[421965143,1778376654000,-5073.68,0.0004175,120]
[421965146,1778376654000,-154.45974035,0.00041753,3]
[421965149,1778376654000,-250.0,0.00041759,114]
[421965148,1778376654000,-250.0,0.00041753,113]
[421965150,1778376654000,-250.0,0.00041764,115]
[421965158,1778376654000,-892.95,0.0004177,120]
[421965134,1778376654000,-151.0,0.00041749,120]
[421965155,1778376654000,-1776.20458845,0.0004177,3]
[421965108,1778376654000,-151.0,0.00041749,120]
[421965128,1778376654000,-151.0,0.00041749,120]
[421965117,1778376654000,-151.0,0.00041749,120]
[421965125,1778376654000,-151.0,0.00041749,120]
[421965151,1778376654000,-250.0,0.00041768,115]
[421965110,1778376654000,-151.0,0.00041749,120]
[421965109,1778376654000,-151.0,0.00041749,120]
[421965107,1778376654000,-151.0,0.00041749,120]
[421965111,1778376654000,-156.1374,0.00041749,120]
[421965115,1778376654000,-151.0,0.00041749,120]
[421965113,1778376654000,-151.0,0.00041749,120]
[421965114,1778376654000,-151.0,0.00041749,120]
[421965116,1778376654000,-151.0,0.00041749,120]
[421965127,1778376654000,-151.0,0.00041749,120]
[421965118,1778376654000,-151.0,0.00041749,120]
[421965112,1778376654000,-151.0,0.00041749,120]
[421965124,1778376654000,-151.0,0.00041749,120]
[421965121,1778376654000,-151.0,0.00041749,120]
[421965123,1778376654000,-151.0,0.00041749,120]
[421965122,1778376654000,-151.0,0.00041749,120]
[421965120,1778376654000,-151.0,0.00041749,120]
[421965137,1778376654000,-151.0,0.00041749,120]
[421965136,1778376654000,-151.0,0.00041749,120]
[421965126,1778376654000,-188.669471,0.00041749,120]
[421965119,1778376654000,-151.0,0.00041749,120]
[421965154,1778376654000,-1000.0,0.0004177,3]
[421965138,1778376654000,-151.0,0.00041749,120]
[421965153,1778376654000,-1000.0,0.0004177,3]
[421965192,1778376654000,-892.95,0.00041772,120]
[421965185,1778376654000,-892.95,0.00041772,120]
[421965184,1778376654000,-892.95,0.00041772,120]
[421965193,1778376654000,-892.95,0.00041772,120]
[421965194,1778376654000,-892.95,0.00041772,120]
[421965183,1778376654000,-156.0,0.00041772,120]
[421965186,1778376654000,-892.95,0.00041772,120]
[421965190,1778376654000,-892.95,0.00041772,120]
[421965189,1778376654000,-892.95,0.00041772,120]
[421965191,1778376654000,-892.95,0.00041772,120]
[421965187,1778376654000,-892.95,0.00041772,120]
[421965188,1778376654000,-892.95,0.00041772,120]
[421965197,1778376654000,-151.0,0.00041772,120]
[421965198,1778376654000,-162.349892,0.00041772,120]
[421965199,1778376654000,-151.0,0.00041772,120]
[421965201,1778376654000,-151.0,0.00041772,120]
[421965200,1778376654000,-162.349892,0.00041772,120]
[421965195,1778376654000,-892.95,0.00041772,120]
[421965202,1778376654000,-162.349892,0.00041772,120]
[421965196,1778376654000,-188.051988,0.00041772,120]
[421965152,1778376654000,-1000.0,0.0004177,3]
[421965182,1778376654000,-203.44005567,0.0004177,120]
[421965174,1778376654000,-722.199432,0.0004177,120]
[421965142,1778376654000,-160.63,0.0004175,120]
[421965177,1778376654000,-151.0,0.0004177,120]
[421965157,1778376654000,-892.95,0.0004177,120]
[421965176,1778376654000,-722.199432,0.0004177,120]
[421965156,1778376654000,-892.95,0.0004177,120]
[421965160,1778376654000,-151.0,0.0004177,120]
[421965171,1778376654000,-295.059288,0.0004177,120]
[421965170,1778376654000,-162.349892,0.0004177,120]
[421965162,1778376654000,-162.349892,0.0004177,120]
[421965161,1778376654000,-151.0,0.0004177,120]
[421965165,1778376654000,-162.349892,0.0004177,120]
[421965163,1778376654000,-5873.836731,0.0004177,14]
[421965169,1778376654000,-5873.836731,0.0004177,14]
[421965159,1778376654000,-892.95,0.0004177,120]
[421965168,1778376654000,-162.349892,0.0004177,120]
[421965164,1778376654000,-151.0,0.0004177,120]
[421965175,1778376654000,-722.199432,0.0004177,120]
[421965172,1778376654000,-722.199432,0.0004177,120]
[421965178,1778376654000,-151.0,0.0004177,120]
[421965181,1778376654000,-193.99415697,0.0004177,120]
[421965173,1778376654000,-5873.836731,0.0004177,14]
[421965180,1778376654000,-151.0,0.0004177,120]
[421965179,1778376654000,-151.0,0.0004177,120]
[421965166,1778376654000,-5873.836731,0.0004177,14]
[421965167,1778376654000,-151.0,0.0004177,120]
[421965241,1778376655000,-722.19943,0.00041772,120]
[421965242,1778376655000,-151.0,0.00041772,120]
[421965243,1778376655000,-151.0,0.00041772,120]
[421965244,1778376655000,-151.0,0.00041772,120]
[421965247,1778376655000,-864.038667,0.00041772,120]
[421965240,1778376655000,-722.199432,0.00041772,120]
[421965236,1778376655000,-722.199432,0.00041772,120]
[421965239,1778376655000,-722.199432,0.00041772,120]
[421965238,1778376655000,-722.199432,0.00041772,120]
[421965237,1778376655000,-722.199432,0.00041772,120]
[421965235,1778376655000,-722.199432,0.00041772,120]
[421965249,1778376655000,-864.038667,0.00041772,120]
[421965245,1778376655000,-864.038667,0.00041772,120]
[421965258,1778376655000,-864.038667,0.00041772,120]
[421965262,1778376655000,-151.0,0.00041772,120]
[421965251,1778376655000,-864.038667,0.00041772,120]
[421965255,1778376655000,-864.038667,0.00041772,120]
[421965253,1778376655000,-864.038667,0.00041772,120]
[421965252,1778376655000,-864.038667,0.00041772,120]
[421965257,1778376655000,-864.038667,0.00041772,120]
[421965256,1778376655000,-864.038667,0.00041772,120]
[421965254,1778376655000,-864.038667,0.00041772,120]
[421965260,1778376655000,-864.038675,0.00041772,120]
[421965270,1778376655000,-151.0,0.00041772,120]
[421965271,1778376655000,-151.0,0.00041772,120]
[421965246,1778376655000,-864.038667,0.00041772,120]
[421965261,1778376655000,-151.0,0.00041772,120]
[421965267,1778376655000,-151.0,0.00041772,120]
[421965250,1778376655000,-864.038667,0.00041772,120]
[421965230,1778376655000,-5873.836731,0.00041772,14]
[421965234,1778376655000,-722.199432,0.00041772,120]
[421965228,1778376655000,-5873.836731,0.00041772,14]
[421965205,1778376655000,-162.349892,0.00041772,120]
[421965204,1778376655000,-151.0,0.00041772,120]
[421965203,1778376655000,-5873.836731,0.00041772,14]
[421965206,1778376655000,-5873.836731,0.00041772,14]
[421965207,1778376655000,-151.0,0.00041772,120]
[421965209,1778376655000,-5873.836731,0.00041772,14]
[421965219,1778376655000,-162.349892,0.00041772,120]
[421965220,1778376655000,-151.0,0.00041772,120]
[421965208,1778376655000,-162.349892,0.00041772,120]
[421965211,1778376655000,-162.349892,0.00041772,120]
[421965210,1778376655000,-151.0,0.00041772,120]
[421965214,1778376655000,-162.349892,0.00041772,120]
[421965213,1778376655000,-151.0,0.00041772,120]
[421965217,1778376655000,-162.349892,0.00041772,120]
[421965215,1778376655000,-5873.836731,0.00041772,14]
[421965212,1778376655000,-5873.836731,0.00041772,14]
[421965218,1778376655000,-5873.836731,0.00041772,14]
[421965216,1778376655000,-151.0,0.00041772,120]
[421965222,1778376655000,-162.349892,0.00041772,120]
[421965266,1778376655000,-151.0,0.00041772,120]
[421965232,1778376655000,-722.199432,0.00041772,120]
[421965233,1778376655000,-5873.836729,0.00041772,14]
[421965223,1778376655000,-722.199432,0.00041772,120]
[421965225,1778376655000,-5873.836731,0.00041772,14]
[421965221,1778376655000,-5873.836731,0.00041772,14]
[421965224,1778376655000,-162.349892,0.00041772,120]
[421965226,1778376655000,-162.349883,0.00041772,120]
[421965231,1778376655000,-5873.836731,0.00041772,14]
[421965227,1778376655000,-722.199432,0.00041772,120]
[421965229,1778376655000,-722.199432,0.00041772,120]
[421965265,1778376655000,-170.310563,0.00041772,120]
[421965248,1778376655000,-864.038667,0.00041772,120]
[421965272,1778376655000,-151.0,0.00041772,120]
[421965310,1778376655000,-267.883486,0.00041772,120]
[421965301,1778376655000,-208.261278,0.00041772,28]
[421965304,1778376655000,-163.266789,0.00041772,120]
[421965307,1778376655000,-151.0,0.00041772,120]
[421965298,1778376655000,-208.261282,0.00041772,28]
[421965303,1778376655000,-151.0,0.00041772,120]
[421965305,1778376655000,-151.0,0.00041772,120]
[421965302,1778376655000,-273.119848,0.00041772,120]
[421965308,1778376655000,-151.0,0.00041772,120]
[421965311,1778376655000,-500.0,0.00041772,3]
[421965322,1778376655000,-173.55,0.00041791,13]